bitfinex-derivatives/quotes_BTCF0:USTF0_20250308
["timestamp","ask_amount","ask_price","bid_price","bid_amount"]
[1741454163351,0.36933454,85946.0,85945.0,0.0931088]
[1741454163661,0.46244224,85946.0,85945.0,0.0931088]
[1741454164654,0.46944224,85946.0,85945.0,0.0941088]
[1741454164859,0.46944224,85946.0,85945.0,0.001]
[1741454165050,0.46944224,85946.0,85945.0,0.0941088]
[1741454165457,0.01853454,85946.0,85945.0,0.4559088]
[1741454165651,0.11164224,85946.0,85945.0,0.0951088]
[1741454166457,0.11164224,85946.0,85945.0,0.002]
[1741454166665,0.11164224,85946.0,85937.0,0.0001746]
[1741454166666,0.0931164,85938.0,85937.0,0.0001746]
[1741454166871,0.0931305,85925.0,85924.0,0.0017458]
[1741454167059,0.0465605,85934.0,85924.0,0.0017458]
[1741454167259,0.0465605,85934.0,85933.0,0.0931186]
[1741454167659,0.0465605,85934.0,85924.0,0.0017458]
[1741454167660,0.0931305,85925.0,85924.0,0.0017458]
[1741454167859,0.1863244,85898.0,85894.0,0.031]
[1741454168061,0.0465807,85897.0,85894.0,0.031]
[1741454168360,0.0921652,85893.0,85892.0,0.00174646]
[1741454168754,0.0931641,85895.0,85894.0,0.093163]
[1741454169357,0.1397386,85902.0,85901.0,0.0931543]
[1741454169773,0.1934,85922.0,85901.0,0.0931543]
[1741454170067,0.0465709,85915.0,85903.0,0.0931543]
[1741454170272,0.0931457,85911.0,85903.0,0.0931543]
[1741454170465,0.046572,85913.0,85903.0,0.1241543]
[1741454170667,0.0465643,85927.0,85903.0,0.5418]
[1741454170869,0.1396989,85925.0,85918.0,0.3608]
[1741454171073,0.1396844,85934.0,85933.0,0.0931218]
[1741454171263,0.046566,85924.0,85921.0,0.0465672]
[1741454171469,0.0931337,85922.0,85921.0,0.0465672]
[1741454171875,0.1396954,85929.0,85928.0,0.093124]
[1741454172275,0.0001746,85930.0,85928.0,0.093124]
[1741454172577,0.0001746,85930.0,85929.0,0.1248261]
[1741454172774,0.0001746,85930.0,85929.0,0.1550261]
[1741454173077,0.3608,85953.0,85945.0,0.0931088]
[1741454173270,0.0465543,85946.0,85945.0,0.0931088]
[1741454173668,0.0329,85952.0,85944.0,0.0317]
[1741454173968,0.0329,85952.0,85877.0,0.01794168]
[1741454173969,0.0931272,85928.0,85926.0,0.0931285]
[1741454174266,0.3608,85945.0,85927.0,0.36254574]
[1741454174267,0.0001746,85936.0,85927.0,0.36254574]
[1741454174465,0.0001746,85936.0,85935.0,0.4539196]
[1741454175262,0.0001746,85936.0,85935.0,0.5176196]
[1741454176078,0.0001746,85936.0,85928.0,0.0931272]
[1741454176079,0.0465598,85935.0,85927.0,0.00274574]
[1741454176272,0.0465598,85935.0,85927.0,0.09587404]
[1741454176273,0.0931272,85928.0,85927.0,0.09587404]
[1741454176572,0.0931246,85931.0,85930.0,0.1396836]
[1741454176777,0.0931218,85933.0,85930.0,0.0465618]
[1741454177171,0.093124,85931.0,85930.0,0.0465618]
[1741454177389,0.0931272,85928.0,85927.0,0.00374574]
[1741454177568,0.0931272,85928.0,85900.0,0.0465786]
[1741454177569,0.0931359,85920.0,85910.0,0.0931465]
[1741454177773,0.4539359,85920.0,85911.0,0.093145]
[1741454177976,0.4539359,85920.0,85913.0,0.0931431]
[1741454177977,0.4519359,85920.0,85913.0,0.0931431]
[1741454178276,0.4519359,85920.0,85912.0,0.0465722]
[1741454178474,0.4519359,85920.0,85906.0,0.0465752]
[1741454178671,0.4509359,85920.0,85905.0,0.046576]
[1741454178876,0.4499359,85920.0,85919.0,0.0933116]
[1741454179377,0.4569359,85920.0,85919.0,0.0011746]
[1741454179580,0.0931576,85900.0,85899.0,0.3608]
[1741454179774,0.0931652,85893.0,85892.0,0.00174646]
[1741454179968,0.0931652,85893.0,85892.0,0.03679485]
[1741454180173,0.0931652,85893.0,85892.0,0.0931663]
[1741454180579,0.4539652,85893.0,85892.0,0.0931663]
[1741454182479,0.4589652,85893.0,85892.0,0.0931663]
[1741454182970,0.4589652,85893.0,85890.0,0.0931676]
[1741454183170,0.0931673,85891.0,85886.0,0.0465862]
[1741454183370,0.0931717,85888.0,85887.0,0.0931711]
[1741454184582,0.0941717,85888.0,85887.0,0.0931711]
[1741454184979,0.001,85888.0,85887.0,0.0931711]
[1741454185375,0.001,85888.0,85887.0,0.1548711]
[1741454186484,0.0941706,85888.0,85887.0,0.1548711]
[1741454186981,0.0465844,85890.0,85889.0,0.0931695]
[1741454187285,0.0465844,85890.0,85884.0,0.01511167]
[1741454187286,0.0931728,85886.0,85884.0,0.0001746]
[1741454187586,0.0931793,85880.0,85879.0,0.19837971]
[1741454187884,0.0931793,85880.0,85872.0,0.41756421]
[1741454187885,0.0931869,85873.0,85872.0,0.36180211]
[1741454188184,0.0931869,85873.0,85859.0,0.48202414]
[1741454188185,0.093201,85860.0,85859.0,0.48202414]
[1741454188380,0.454001,85860.0,85859.0,0.48142414]
[1741454189184,0.454001,85860.0,85859.0,0.42330623]
[1741454189488,0.27915015,85860.0,85859.0,0.42330623]
[1741454189779,0.37235115,85860.0,85859.0,0.42330623]
[1741454190082,0.37635115,85860.0,85859.0,0.42330623]
[1741454190279,0.37635115,85860.0,85859.0,0.51650833]
[1741454190878,0.009,85860.0,85859.0,0.51650833]
[1741454191188,0.009,85860.0,85859.0,0.0932021]
[1741454191484,0.3608,85864.0,85863.0,0.0931977]
[1741454191685,0.0001747,85868.0,85867.0,0.0931934]
[1741454192288,0.093367,85868.0,85867.0,0.0931934]
[1741454192481,0.093367,85868.0,85867.0,0.1561934]
[1741454192673,0.0001747,85868.0,85867.0,0.1561934]
[1741454192875,0.093367,85868.0,85867.0,0.1561934]
[1741454193085,0.3609747,85868.0,85851.0,0.0001747]
[1741454193276,0.093201,85860.0,85859.0,0.0303]
[1741454193584,0.092201,85860.0,85859.0,0.0303]
[1741454193786,0.092201,85860.0,85859.0,0.1235021]
[1741454193787,0.144101,85860.0,85859.0,0.1235021]
[1741454193991,0.144101,85860.0,85859.0,0.0303]
[1741454194288,0.144101,85860.0,85859.0,0.1235021]
[1741454194480,0.144101,85860.0,85859.0,0.0303]
[1741454194986,0.144101,85860.0,85859.0,0.1235021]
[1741454195187,0.148101,85860.0,85859.0,0.06538419]
[1741454195885,0.152101,85860.0,85859.0,0.06538419]
[1741454196485,0.0294,85860.0,85859.0,0.06538419]
[1741454196687,0.008,85860.0,85859.0,0.06538419]
[1741454197886,0.099201,85860.0,85859.0,0.06538419]
[1741454198285,0.096201,85860.0,85857.0,0.0778019]
[1741454198483,0.094201,85860.0,85859.0,0.0932021]
[1741454198678,0.098201,85860.0,85859.0,0.0932021]
[1741454198878,0.098201,85860.0,85859.0,0.1260021]
[1741454199081,0.101201,85860.0,85859.0,0.1260021]
[1741454199281,0.101201,85860.0,85859.0,0.0328]
[1741454199484,0.164001,85860.0,85859.0,0.0328]
[1741454200487,0.164001,85860.0,85859.0,0.1260021]
[1741454200685,0.101201,85860.0,85859.0,0.1260021]
[1741454200891,0.101201,85860.0,85859.0,0.0328]
[1741454201083,0.132801,85860.0,85859.0,0.064]
[1741454201282,0.132801,85860.0,85859.0,0.00588209]
[1741454201592,0.164201,85860.0,85859.0,0.00588209]
[1741454202786,0.008,85860.0,85859.0,0.45988419]
[1741454203092,0.008,85860.0,85859.0,0.09908419]
[1741454203294,0.462001,85860.0,85859.0,0.00588209]
[1741454203586,0.462001,85860.0,85859.0,0.09908419]
[1741454204186,0.527901,85860.0,85859.0,0.09908419]
[1741454204387,0.527901,85860.0,85859.0,0.04096628]
[1741454204584,0.0932031,85858.0,85857.0,0.1232033]
[1741454205591,0.36844,85860.0,85859.0,0.0932021]
[1741454205893,0.3638,85860.0,85859.0,0.0932021]
[1741454206393,0.3608,85860.0,85859.0,0.0932021]
[1741454207089,0.454001,85860.0,85859.0,0.0932021]
[1741454207291,0.458001,85860.0,85857.0,0.1232033]
[1741454207488,0.3648,85860.0,85857.0,0.1232033]
[1741454207794,0.0932031,85858.0,85857.0,0.1232031]
[1741454208395,0.1255031,85858.0,85857.0,0.03]
[1741454208597,0.1568031,85858.0,85857.0,0.1232042]
[1741454208984,0.1608031,85858.0,85857.0,0.1232042]
[1741454209183,0.0972031,85858.0,85857.0,0.1232042]
[1741454209393,0.004,85858.0,85857.0,0.1232042]
[1741454209993,0.0931947,85866.0,85865.0,0.0931934]
[1741454211296,0.0467712,85868.0,85865.0,0.0931934]
[1741454211297,0.0001747,85868.0,85867.0,0.0931934]
[1741454212487,0.0041747,85868.0,85867.0,0.0931934]
[1741454213084,0.0081747,85868.0,85867.0,0.1554934]
[1741454213896,0.0071747,85868.0,85867.0,0.1554934]
[1741454214897,0.0061747,85868.0,85867.0,0.1554934]
[1741454215597,0.0931711,85888.0,85887.0,0.0931706]
[1741454215890,0.41689487,85890.0,85889.0,0.0931695]
[1741454216402,0.41621487,85890.0,85887.0,0.10782592]
[1741454216698,0.41621487,85890.0,85889.0,0.0931695]
[1741454217290,0.3608,85890.0,85889.0,0.0931695]
[1741454218393,0.005,85890.0,85889.0,0.1407537]
[1741454218696,0.0001747,85898.0,85889.0,0.001]
[1741454218899,0.00887603,85898.0,85897.0,0.0931608]
[1741454219399,0.00887603,85898.0,85897.0,0.39584289]
[1741454219696,0.00887603,85898.0,85897.0,0.4539608]
[1741454219890,0.0001747,85898.0,85897.0,0.4539608]
[1741454220191,1e-08,85898.0,85897.0,0.4539608]
[1741454220395,0.01337019,85919.0,85897.0,0.4539608]
[1741454220396,0.01337019,85919.0,85918.0,0.0931381]
[1741454220595,0.0311,85923.0,85916.0,0.4073697]
[1741454220792,0.01337019,85933.0,85917.0,0.0319]
[1741454220995,0.01337019,85933.0,85929.0,0.0931261]
[1741454221299,0.10193047,85930.0,85929.0,0.4539261]
[1741454221489,0.00880537,85930.0,85929.0,0.4539261]
[1741454221689,0.0931231,85932.0,85931.0,0.093124]
[1741454222196,0.0931231,85932.0,85929.0,0.42191877]
[1741454222197,0.0311,85937.0,85936.0,0.0931175]
[1741454222408,0.00017458,85938.0,85937.0,0.0931175]
[1741454222697,0.01337019,85949.0,85948.0,0.0931055]
[1741454222893,0.1707556,85952.0,85951.0,0.0931023]
[1741454223196,0.0931077,85946.0,85945.0,0.0306]
[1741454223393,0.0931077,85946.0,85945.0,0.1237088]
[1741454223594,0.0465531,85948.0,85945.0,0.1237088]
[1741454223595,0.00894089,85952.0,85951.0,0.0931023]
[1741454223796,0.36140001,85954.0,85952.0,0.0931012]
[1741454223797,0.0931006,85953.0,85952.0,0.0931012]
[1741454223990,0.1262006,85953.0,85952.0,0.0931012]
[1741454224888,0.0331,85953.0,85939.0,0.0465572]
[1741454225194,0.0931164,85938.0,85937.0,0.09328768]
[1741454225390,0.0911164,85938.0,85937.0,0.18640128]
[1741454225594,0.0911164,85938.0,85937.0,0.1862272]
[1741454225985,0.0901164,85938.0,85937.0,0.1862272]
[1741454226400,0.0891164,85938.0,85937.0,0.1862272]
[1741454227195,0.0901164,85938.0,85937.0,0.1872272]
[1741454227599,0.0911164,85938.0,85937.0,0.1882272]
[1741454227897,0.002,85938.0,85937.0,0.5490272]
[1741454228701,0.00900236,85954.0,85937.0,0.3628]
[1741454228897,0.00011292,85954.0,85953.0,0.4539001]
[1741454230201,0.00611292,85954.0,85953.0,0.4539001]
[1741454230796,0.001,85954.0,85953.0,0.4539001]
[1741454231299,0.0465434,85966.0,85965.0,0.093085]
[1741454232697,0.0505434,85966.0,85965.0,0.094085]
[1741454233408,0.005,85966.0,85965.0,0.10830899]
[1741454233994,0.005,85966.0,85965.0,0.01522399]
[1741454234194,0.005,85966.0,85943.0,0.3608]
[1741454234195,0.0930947,85958.0,85943.0,0.3608]
[1741454234400,0.4538947,85958.0,85945.0,0.0931082]
[1741454234596,0.0465585,85939.0,85935.0,0.35383898]
[1741454234907,0.139676,85939.0,85938.0,0.0931154]
[1741454235113,0.138676,85939.0,85938.0,0.0931154]
[1741454235603,0.093124,85931.0,85922.0,0.0772666]
[1741454235805,0.091124,85931.0,85930.0,0.00192023]
[1741454236797,0.154424,85931.0,85930.0,0.00192023]
[1741454237609,0.154424,85931.0,85925.0,0.03695663]
[1741454237807,0.138702,85922.0,85921.0,0.0931293]
[1741454238113,0.1396994,85925.0,85924.0,0.0931316]
[1741454239016,0.0455625,85930.0,85929.0,0.0931261]
[1741454239210,0.0625,85930.0,85929.0,0.0931261]
[1741454239409,0.1556251,85930.0,85929.0,0.0931261]
[1741454240202,0.3608,85959.0,85929.0,0.3608]
[1741454240496,0.0625,85943.0,85942.0,0.093112]
[1741454240701,0.0625,85943.0,85941.0,0.0322]
[1741454240904,0.0465498,85954.0,85946.0,0.0931077]
[1741454241104,0.0931035,85950.0,85946.0,0.0931077]
[1741454241298,0.09328118,85947.0,85946.0,0.0931077]
[1741454242101,0.15908118,85947.0,85946.0,0.0931077]
[1741454243116,0.16308118,85947.0,85946.0,0.0941077]
[1741454243304,0.16508118,85947.0,85946.0,0.0941077]
[1741454243504,0.0931207,85934.0,85926.0,0.3608]
[1741454243714,0.0931391,85918.0,85916.0,0.0322]
[1741454243900,0.0931391,85917.0,85916.0,0.0322]
[1741454244104,0.3608,85920.0,85907.0,1.14472]
[1741454244105,0.3598,85920.0,85907.0,1.14472]
[1741454244309,0.0931489,85908.0,85907.0,1.14408]
[1741454244509,0.0931489,85908.0,85907.0,1.23723]
[1741454244808,0.0921489,85908.0,85907.0,1.23723]
[1741454245007,0.0911489,85908.0,85907.0,1.14408]
[1741454245315,0.0931522,85905.0,85904.0,0.01390466]
[1741454245507,0.0465753,85907.0,85900.0,0.093157]
[1741454245702,0.1256532,85904.0,85900.0,0.093157]
[1741454245915,0.0931576,85900.0,85899.0,0.34842167]
[1741454246813,0.0931576,85900.0,85899.0,0.29032807]
[1741454247714,0.2865576,85900.0,85899.0,0.29032807]
[1741454248008,0.2865576,85900.0,85891.0,0.09126135]
[1741454248009,0.5675,85900.0,85891.0,0.09126135]
[1741454248213,0.2865771,85882.0,85881.0,0.29015349]
[1741454248408,0.5467771,85882.0,85881.0,0.29015349]
[1741454248613,0.5457771,85882.0,85881.0,0.29015349]
[1741454249415,0.5447771,85882.0,85881.0,0.29015349]
[1741454249610,0.5437771,85882.0,85881.0,0.29015349]
[1741454249809,0.5437771,85882.0,85881.0,0.23205989]
[1741454250209,0.5497771,85882.0,85881.0,0.23305989]
[1741454251216,0.5567771,85882.0,85881.0,0.23405989]
[1741454251806,0.5887771,85882.0,85881.0,0.23405989]
[1741454252719,0.5887771,85882.0,85881.0,0.002]
[1741454252910,0.0931869,85874.0,85873.0,0.0931858]
[1741454253107,0.4986,85882.0,85871.0,0.00174679]
[1741454253108,0.0465926,85875.0,85871.0,0.00174679]
[1741454253311,0.093188,85872.0,85871.0,0.00174679]
[1741454253611,0.093188,85872.0,85857.0,0.1232042]
[1741454253612,0.0932031,85858.0,85857.0,0.1232042]
[1741454254415,0.0932064,85855.0,85854.0,0.0932069]
[1741454254617,0.0922064,85855.0,85854.0,0.1556069]
[1741454255115,0.0615,85858.0,85854.0,0.1556069]
[1741454255316,0.0932038,85858.0,85857.0,0.0932042]
[1741454255507,0.003,85858.0,85857.0,0.0932042]
[1741454255712,0.003,85858.0,85857.0,0.1556042]
[1741454255907,0.0962031,85858.0,85857.0,0.0624]
[1741454256211,0.003,85858.0,85857.0,0.1556042]
[1741454256408,0.003,85858.0,85849.0,0.04672296]
[1741454256409,0.0466021,85857.0,85849.0,0.00011676]
[1741454256720,0.0466132,85837.0,85834.0,0.00064]
[1741454256914,0.7216,85835.0,85821.0,0.0312]
[1741454257115,0.0932422,85822.0,85821.0,0.0312]
[1741454257310,0.0932422,85822.0,85821.0,0.1244433]
[1741454257517,0.09324,85825.0,85824.0,0.093239]
[1741454258017,0.09324,85825.0,85824.0,0.124639]
[1741454259016,0.09624,85825.0,85824.0,0.0314]
[1741454259419,0.09624,85825.0,85824.0,0.124639]
[1741454260512,0.003,85825.0,85824.0,0.124639]
[1741454260713,0.005,85825.0,85824.0,0.124639]
[1741454261214,0.005,85825.0,85804.0,0.36254826]
[1741454261516,0.0932564,85809.0,85808.0,0.1249575]
[1741454261717,0.0516199,85825.0,85808.0,0.0317]
[1741454261925,0.1398673,85823.0,85815.0,0.3608]
[1741454262113,0.0516199,85825.0,85815.0,0.3608]
[1741454262313,0.0516199,85825.0,85804.0,0.37626829]
[1741454262314,0.0932607,85805.0,85804.0,0.00174826]
[1741454262523,0.0922607,85805.0,85804.0,0.00174826]
[1741454262714,0.0922607,85805.0,85804.0,0.09501006]
[1741454263317,0.0922607,85805.0,85804.0,0.00174826]
[1741454263522,0.1855236,85805.0,85804.0,0.0932618]
[1741454263723,0.0922607,85805.0,85804.0,0.0932618]
[1741454264119,0.0466296,85807.0,85800.0,0.091]
[1741454264325,0.4540651,85801.0,85800.0,0.091]
[1741454264923,0.4540651,85801.0,85800.0,0.1842662]
[1741454265127,0.4540651,85801.0,85800.0,0.0329064]
[1741454266226,0.0932835,85784.0,85759.0,0.09184]
[1741454266417,0.0932835,85784.0,85783.0,0.4540846]
[1741454267126,0.0932835,85784.0,85783.0,0.3608]
[1741454267327,0.0932912,85777.0,85776.0,0.3608]
[1741454267823,0.1244912,85777.0,85776.0,0.3608]
[1741454268018,0.0312,85777.0,85775.0,0.0932933]
[1741454268219,0.0312,85777.0,85750.0,0.2771638]
[1741454268220,0.093302,85767.0,85750.0,0.2771638]
[1741454268431,0.0933107,85759.0,85758.0,0.4541081]
[1741454268728,0.09176,85782.0,85760.0,0.0466546]
[1741454268921,0.0932838,85785.0,85784.0,0.0932814]
[1741454269224,0.0932835,85784.0,85783.0,0.1253814]
[1741454269423,0.36140001,85787.0,85783.0,0.1253814]
[1741454269630,0.0314,85785.0,85784.0,0.0932814]
[1741454269832,0.3608,85787.0,85786.0,0.0932814]
[1741454270825,0.0314,85794.0,85786.0,0.0932814]
[1741454271029,0.0304,85801.0,85792.0,0.0351812]
[1741454271224,0.0304,85801.0,85790.0,0.0466382]
[1741454271427,0.0304,85801.0,85792.0,0.0932748]
[1741454271733,0.0932677,85799.0,85792.0,0.0932748]
[1741454271931,0.0934487,85793.0,85792.0,0.0932748]
[1741454272127,0.0001749,85793.0,85792.0,0.0932748]
[1741454272916,0.0304,85802.0,85791.0,0.0326]
[1741454272917,0.00881256,85798.0,85797.0,0.0932694]
[1741454273121,0.1702994,85802.0,85801.0,0.0932651]
[1741454273333,0.454064,85803.0,85802.0,0.093264]
[1741454273531,0.454064,85803.0,85802.0,0.125864]
[1741454273532,0.3608,85803.0,85802.0,0.125864]
[1741454273725,0.4540629,85803.0,85802.0,0.125864]
[1741454273926,0.3608,85803.0,85802.0,0.125864]
[1741454274231,0.36098548,85803.0,85802.0,0.125864]
[1741454274426,0.45424838,85803.0,85802.0,0.125864]
[1741454275034,0.36098548,85803.0,85802.0,0.125864]
[1741454275625,0.45424838,85803.0,85802.0,0.125864]
[1741454276229,0.0932716,85795.0,85792.0,0.0006]
[1741454276438,0.4540716,85795.0,85792.0,0.0781372]
[1741454276625,0.4540716,85795.0,85794.0,0.0934476]
[1741454276930,0.4540716,85795.0,85794.0,0.0001749]
[1741454277122,0.3608,85795.0,85786.0,0.0979623]
[1741454277331,0.4540803,85787.0,85786.0,0.093281]
[1741454277636,0.093289,85779.0,85778.0,0.2771638]
[1741454277930,0.00313891,85786.0,85778.0,0.3704539]
[1741454278135,0.0932879,85781.0,85779.0,0.0319]
[1741454278320,0.0932879,85781.0,85780.0,0.1264879]
[1741454279137,0.0932847,85783.0,85782.0,0.0932835]
[1741454279436,0.3608,85787.0,85780.0,0.0332]
[1741454279638,0.0932827,85785.0,85784.0,0.0932814]
[1741454279837,0.3608,85787.0,85784.0,0.1583814]
[1741454280034,0.4540808,85787.0,85786.0,0.0932814]
[1741454280226,0.500721,85787.0,85784.0,0.1583814]
[1741454280429,0.0933118,85758.0,85757.0,0.2771638]
[1741454280729,0.2867118,85758.0,85757.0,0.2771638]
[1741454281732,0.3510118,85758.0,85757.0,0.2771638]
[1741454282332,0.0933282,85743.0,85742.0,0.41720938]
[1741454282529,0.6475282,85743.0,85742.0,0.41720938]
[1741454282730,0.6475282,85743.0,85742.0,0.51053858]
[1741454282929,0.6475282,85743.0,85742.0,0.54233858]
[1741454283131,0.09124,85767.0,85761.0,0.0933086]
[1741454283332,0.1257113,85759.0,85758.0,0.0933118]
[1741454283629,0.0324,85759.0,85758.0,0.0933118]
[1741454283836,0.09132,85777.0,85761.0,0.0933086]
[1741454284032,0.3695609,85762.0,85761.0,0.0933086]
[1741454284739,0.3608,85762.0,85761.0,0.0933086]
[1741454284937,0.0934784,85766.0,85765.0,0.0933042]
[1741454284938,0.0001749,85766.0,85765.0,0.0933042]
[1741454285330,0.00858144,85779.0,85765.0,0.3608]
[1741454285639,0.4216,85793.0,85765.0,0.3608]
[1741454285640,0.3608,85793.0,85777.0,0.3608]
[1741454285841,0.3608,85793.0,85788.0,0.093275]
[1741454285842,0.1235781,85789.0,85788.0,0.093275]
[1741454286334,0.0303,85789.0,85788.0,0.093275]
[1741454286539,0.0932868,85781.0,85780.0,0.1235628]
[1741454287444,0.3608,85786.0,85785.0,0.0932825]
[1741454287741,0.00060001,85793.0,85792.0,0.0932748]
[1741454287937,0.0001749,85797.0,85791.0,0.0301]
[1741454288131,0.0001749,85797.0,85796.0,0.0932705]
[1741454289242,0.0001749,85797.0,85794.0,0.046636]
[1741454289442,0.0001749,85797.0,85796.0,0.0932705]
[1741454291435,0.0001749,85797.0,85796.0,0.1845505]
[1741454292445,0.0001749,85797.0,85796.0,0.09128]
[1741454292640,0.0932716,85795.0,85794.0,0.05008]
[1741454292829,0.0932868,85781.0,85780.0,0.0001749]
[1741454293033,0.4540868,85781.0,85780.0,0.0001749]
[1741454293943,0.0933107,85759.0,85758.0,0.34635091]
[1741454294141,0.4541107,85759.0,85758.0,0.34635091]
[1741454295240,0.0933151,85755.0,85754.0,0.0317]
[1741454295438,0.0466584,85754.0,85750.0,0.8781603]
[1741454295635,0.1259173,85753.0,85752.0,0.0933173]
[1741454296142,0.5014509,85759.0,85758.0,0.0933118]
[1741454296336,0.5007709,85759.0,85758.0,0.0933118]
[1741454297135,0.4074559,85759.0,85758.0,0.0933118]
[1741454298341,0.6008559,85759.0,85758.0,0.0352182]
[1741454298638,0.4074559,85759.0,85758.0,0.0933118]
[1741454299144,0.0933082,85762.0,85758.0,0.4541118]
[1741454299344,0.0933082,85762.0,85761.0,0.0933086]
[1741454301547,0.0933107,85760.0,85759.0,0.0933105]
[1741454302047,0.0305,85760.0,85759.0,0.1261105]
[1741454302546,0.1238097,85760.0,85759.0,0.1261105]
[1741454303241,0.0305,85760.0,85759.0,0.1261105]
[1741454303446,0.0305,85760.0,85759.0,0.1590105]
[1741454303647,0.00892616,85762.0,85759.0,0.0657]
[1741454303843,0.0305,85764.0,85763.0,0.0933064]
[1741454304044,0.36144,85774.0,85766.0,0.0933031]
[1741454304344,0.0934769,85767.0,85766.0,0.0933031]
[1741454304549,0.0934769,85767.0,85764.0,0.0466523]
[1741454304550,0.0934769,85767.0,85765.0,0.0648]
[1741454304750,0.0934769,85767.0,85766.0,0.0933031]
[1741454304954,0.12715244,85767.0,85766.0,0.0933031]
[1741454305145,0.12715244,85767.0,85766.0,0.1581031]
[1741454306143,0.12715244,85767.0,85766.0,0.0329]
[1741454306756,0.12715244,85767.0,85766.0,0.1262031]
[1741454307443,0.12715244,85767.0,85766.0,0.0681095]
[1741454309751,0.00115044,85767.0,85766.0,0.0681095]
[1741454310347,0.00115044,85767.0,85766.0,0.4289095]
[1741454310550,0.00115044,85767.0,85766.0,0.3608]
[1741454310852,0.00115044,85767.0,85766.0,0.4541031]
[1741454311257,0.00115044,85767.0,85766.0,0.4871031]
[1741454312364,0.09445244,85767.0,85766.0,0.4871031]
[1741454312752,0.09445244,85767.0,85766.0,0.1263031]
[1741454313158,0.0466503,85769.0,85766.0,0.033]
[1741454313358,0.0466503,85769.0,85768.0,0.0933009]
[1741454313556,0.0466503,85769.0,85767.0,0.0307]
[1741454313756,0.0466503,85769.0,85768.0,0.1243009]
[1741454314956,0.0934666,85777.0,85776.0,0.0932922]
[1741454315155,0.0001749,85777.0,85776.0,0.0932922]
[1741454315355,0.0315,85792.0,85791.0,0.0932759]
[1741454315550,0.0315,85792.0,85791.0,0.4540759]
[1741454316062,0.01337001,85798.0,85795.0,0.0932694]
[1741454316063,0.0932715,85796.0,85795.0,0.0932694]
[1741454316760,0.0932715,85796.0,85795.0,0.17198755]
[1741454316964,0.09358436,85796.0,85795.0,0.17198755]
[1741454317758,0.00031286,85796.0,85795.0,0.17198755]
[1741454317957,0.0001749,85804.0,85803.0,0.0932629]
[1741454318261,0.0934367,85804.0,85803.0,0.3608]
[1741454318456,0.0301,85808.0,85805.0,0.0466301]
[1741454318656,0.0314,85813.0,85806.0,0.063]
[1741454318856,0.0932334,85831.0,85830.0,0.0932325]
[1741454319060,0.0314,85831.0,85812.0,0.3608]
[1741454319253,0.0314,85831.0,85828.0,0.0932349]
[1741454319562,0.13410319,85832.0,85831.0,0.0351389]
[1741454319859,0.13410319,85832.0,85831.0,0.0932325]
[1741454320068,0.22733459,85832.0,85831.0,0.1563325]
[1741454320367,0.13410319,85832.0,85831.0,0.1563325]
[1741454320868,0.22733459,85832.0,85831.0,0.1563325]
[1741454321068,0.22733459,85832.0,85831.0,0.0631]
[1741454321365,0.0932422,85822.0,85805.0,0.0932599]
[1741454321568,0.0932422,85822.0,85803.0,0.0332]
[1741454321569,0.4540422,85822.0,85803.0,0.0332]
[1741454321751,0.4540422,85822.0,85814.0,0.0932503]
[1741454322152,0.4540422,85822.0,85803.0,0.0798311]
[1741454322362,0.5171422,85822.0,85804.0,0.0321]
[1741454322563,0.5171422,85822.0,85799.0,0.78424]
[1741454322564,0.093252,85813.0,85799.0,0.78424]
[1741454322759,0.0932662,85800.0,85799.0,0.72789442]
[1741454322959,0.0932716,85795.0,85794.0,0.0323]
[1741454323158,0.0932716,85795.0,85794.0,0.1255727]
[1741454325075,0.0628,85799.0,85794.0,0.0323]
[1741454325258,0.0932688,85798.0,85797.0,0.0932683]
[1741454325564,0.1560678,85799.0,85798.0,0.0932683]
[1741454325869,0.1243678,85799.0,85798.0,0.0932683]
[1741454326568,0.3608,85805.0,85802.0,0.093264]
[1741454327358,0.0311,85812.0,85802.0,0.093264]
[1741454327563,0.0932462,85820.0,85819.0,0.0932433]
[1741454327761,0.1243421,85824.0,85823.0,0.0932412]
[1741454328265,0.36140001,85830.0,85823.0,0.0932412]
[1741454328467,0.093239,85827.0,85826.0,0.0932357]
[1741454328662,0.0311,85829.0,85825.0,0.0319]
[1741454328965,0.1243373,85829.0,85828.0,0.0932357]
[1741454330474,0.1243346,85829.0,85828.0,0.0932357]
[1741454330676,0.00064,85834.0,85828.0,0.0932357]
[1741454330970,0.0932148,85848.0,85834.0,0.0932292]
[1741454331265,0.0932165,85846.0,85845.0,0.0466083]
[1741454331460,0.0797065,85849.0,85848.0,0.093214]
[1741454331863,0.0331,85849.0,85848.0,0.093214]
[1741454332066,0.0331,85849.0,85846.0,0.0333]
[1741454332067,0.0331,85873.0,85846.0,0.0333]
[1741454332266,0.0331,85873.0,85872.0,0.093188]
[1741454332267,0.04248142,85873.0,85872.0,0.093188]
[1741454332769,0.0331,85890.0,85871.0,0.3608]
[1741454332770,0.00017468,85881.0,85880.0,0.0931793]
[1741454333069,0.00017468,85881.0,85880.0,0.46721785]
[1741454333260,0.13437644,85891.0,85890.0,0.0931684]
[1741454333455,0.13437644,85891.0,85890.0,0.47218013]
[1741454333869,0.12546863,85891.0,85890.0,0.47218013]
[1741454334069,0.0465811,85896.0,85890.0,0.11138013]
[1741454334367,0.0465811,85896.0,85895.0,0.093163]
[1741454334575,0.1,85900.0,85899.0,0.0931587]
[1741454334765,0.1,85900.0,85888.0,0.046585]
[1741454334766,0.20200951,85900.0,85888.0,0.046585]
[1741454334957,0.3608,85897.0,85896.0,0.0931619]
[1741454335159,0.10885181,85900.0,85899.0,0.0931587]
[1741454335466,0.10885181,85900.0,85899.0,0.14050778]
[1741454335660,0.1,85900.0,85899.0,0.17692978]
[1741454336270,0.06462517,85900.0,85899.0,0.17692978]
[1741454336468,0.04223756,85918.0,85914.0,0.0931413]
[1741454336673,0.04223756,85918.0,85899.0,0.13111296]
[1741454336674,0.2113475,85931.0,85919.0,0.0465681]
[1741454336872,0.0333,85930.0,85922.0,0.0931337]
[1741454337058,0.36942255,85923.0,85922.0,0.11134496]
[1741454337262,0.1647854,85931.0,85930.0,0.0931251]
[1741454337560,0.3694453,85941.0,85940.0,0.0931142]
[1741454337769,0.4539131,85941.0,85940.0,0.08374936]
[1741454337963,0.4539131,85941.0,85940.0,0.11876996]
[1741454338162,0.4539131,85941.0,85936.0,0.0465591]
[1741454338163,0.3608,85941.0,85930.0,0.04733155]
[1741454338458,0.093124,85931.0,85930.0,0.04733155]
[1741454338659,0.093124,85931.0,85917.0,0.3608]
[1741454338660,0.3608,85932.0,85931.0,0.093124]
[1741454339468,0.3608,85934.0,85933.0,0.0931218]
[1741454339669,0.00861273,85944.0,85929.0,0.0338]